bitfinex-derivatives/quotes_ETHF0:USTF0_20230403
["timestamp","ask_amount","ask_price","bid_price","bid_amount"]
[1680517315497,1.44357301,1810.7,1810.6,6.94308627]
[1680517317598,0.86550143,1810.7,1810.6,6.94308627]
[1680517319100,0.86550143,1810.7,1810.6,7.52231653]
[1680517320999,0.86550143,1810.7,1810.6,7.81267099]
[1680517321999,0.86550143,1810.7,1810.6,8.3914187]
[1680517324098,0.86550143,1810.7,1810.6,7.81267099]
[1680517324501,0.86550143,1810.7,1810.6,8.39137022]
[1680517329105,0.86550143,1810.7,1810.6,8.39133761]
[1680517329414,0.86550143,1810.7,1810.6,8.39133766]
[1680517329816,0.86550143,1810.7,1810.6,7.52175294]
[1680517334013,0.86550143,1810.7,1810.6,6.52175294]
[1680517340817,0.86550143,1810.7,1810.6,7.52175294]
[1680517341122,0.86550143,1810.7,1810.6,7.75304636]
[1680517342825,0.86550143,1810.7,1810.6,6.75304636]
[1680517347521,1.15592793,1810.8,1810.6,6.75304636]
[1680517347724,1.15592793,1810.8,1810.7,1.105]
[1680517348022,1.15592793,1810.8,1810.7,2.73937959]
[1680517348632,1.15592793,1810.8,1810.7,1.73937959]
[1680517349024,1.15592793,1810.8,1810.7,2.73937959]
[1680517349226,1.15592793,1810.8,1810.7,1.73937959]
[1680517349529,1.44498959,1810.9,1810.7,1.73937959]
[1680517349729,1.44498959,1810.9,1810.8,1.103]
[1680517351533,1.44825599,1810.9,1810.8,1.103]
[1680517351719,1.44825599,1810.9,1810.8,4.3108]
[1680517352325,1.44825599,1810.9,1810.8,1.103]
[1680517354425,1.44825599,1810.9,1810.8,2.103]
[1680517354831,1.44825599,1810.9,1810.8,4.3108]
[1680517355635,1.44825599,1810.9,1810.8,4.85420597]
[1680517359336,1.44825599,1810.9,1810.8,5.57298893]
[1680517359637,1.44825599,1810.9,1810.8,6.1516556]
[1680517360946,1.44825599,1810.9,1810.8,5.57298893]
[1680517361548,1.44825599,1810.9,1810.8,6.1516556]
[1680517362143,1.44825599,1810.9,1810.8,6.7046556]
[1680517367352,1.44825599,1810.9,1810.8,7.5266556]
[1680517367746,1.44825599,1810.9,1810.8,4.3188556]
[1680517367951,1.44825599,1810.9,1810.8,7.5266556]
[1680517370455,1.44825599,1810.9,1810.8,6.98324963]
[1680517371552,1.44825599,1810.9,1810.8,6.97549021]
[1680517371856,1.44825599,1810.9,1810.8,7.53360861]
[1680517372052,1.44825599,1810.9,1810.8,6.70560861]
[1680517374556,1.44825599,1810.9,1810.8,3.49780861]
[1680517383560,1.44825599,1810.9,1810.8,2.91914194]
[1680517387980,3.56324438,1811.1,1810.8,2.09714194]
[1680517388164,10.03288527,1811.0,1810.8,2.09714194]
[1680517388363,1.0,1810.9,1810.8,1.90800982]
[1680517388671,1.828,1810.9,1810.8,0.52189142]
[1680517388969,1.0,1810.8,1810.6,0.828]
[1680517389168,2.44791022,1810.7,1810.6,0.828]
[1680517389363,1.821,1810.7,1810.5,0.57866667]
[1680517389563,14.06696589,1810.6,1810.2,0.86953764]
[1680517389873,2.158209,1810.3,1810.2,1.68953764]
[1680517390076,1.158209,1810.3,1810.2,1.68953764]
[1680517390372,0.86775881,1810.3,1810.2,1.68953764]
[1680517390669,0.86775881,1810.3,1810.2,0.82]
[1680517391168,0.57851324,1810.3,1810.2,2.68953764]
[1680517391668,1.44627205,1810.3,1810.2,2.68953764]
[1680517392269,0.57851324,1810.3,1810.2,1.68953764]
[1680517392774,4.366009,1810.5,1810.3,6.6]
[1680517392775,0.86753971,1810.5,1810.3,6.6]
[1680517392965,0.8676463,1810.8,1810.4,13.00679587]
[1680517393165,0.8676463,1810.9,1810.8,0.828]
[1680517393368,0.8676463,1810.9,1810.8,3.483]
[1680517393566,0.8676463,1810.9,1810.8,2.483]
[1680517393771,0.86789828,1810.9,1810.8,2.483]
[1680517397083,0.86789828,1810.9,1810.8,1.102]
[1680517403991,0.86789828,1810.9,1810.8,1.64312873]
[1680517416595,4.07569828,1810.9,1810.8,1.64312873]
[1680517416796,3.2078,1810.9,1810.8,1.64512873]
[1680517417003,4.07516511,1810.9,1810.8,1.64512873]
[1680517417191,3.2078,1810.9,1810.8,1.64512873]
[1680517417397,4.36451962,1810.9,1810.8,1.64512873]
[1680517419004,4.36451962,1810.9,1810.8,1.43183617]
[1680517422208,4.36451962,1810.9,1810.8,0.32783617]
[1680517422407,5.65556125,1810.9,1810.8,0.32783617]
[1680517427916,4.65556125,1810.9,1810.8,0.32783617]
[1680517432024,4.65556125,1810.9,1810.8,1.43183617]
[1680517437024,9.65556125,1810.9,1810.8,0.32783617]
[1680517437224,18.35059156,1810.9,1810.8,1e-08]
[1680517437420,13.35059156,1810.9,1810.4,5.8684]
[1680517437623,0.86763351,1810.5,1810.4,5.8684]
[1680517437826,0.86763351,1810.5,1810.4,1.096]
[1680517442027,0.86763351,1810.5,1810.4,1.104]
[1680517444931,0.86763351,1810.5,1810.4,1.23694479]
[1680517452354,2.60290053,1810.7,1810.4,2.33894479]
[1680517452647,0.86736713,1810.7,1810.5,1.0]
[1680517452846,0.86736713,1810.7,1810.6,1.104]
[1680517461358,4.36464468,1810.8,1810.6,1.104]
[1680517461658,4.36464468,1810.8,1810.7,1.104]
[1680517462158,4.36464468,1810.8,1810.7,0.828]
[1680517463453,5.0308,1810.8,1810.5,0.96101606]
[1680517463655,4.36555963,1810.6,1810.5,0.96101606]
[1680517473566,3.2078,1810.6,1810.5,0.96101606]
[1680517474665,5.48299954,1810.6,1810.5,0.13301606]
[1680517474863,4.24262601,1810.6,1810.3,0.98021397]
[1680517475061,4.65557524,1810.4,1810.3,0.98021397]
[1680517476068,3.2078,1810.4,1810.3,0.98021397]
[1680517477264,4.65557524,1810.4,1810.3,0.98021397]
[1680517478167,3.2078,1810.4,1810.3,0.98021397]
[1680517478774,4.65557524,1810.4,1810.3,0.98021397]
[1680517479068,4.92953276,1810.4,1810.3,0.98021397]
[1680517479867,3.48175752,1810.4,1810.3,0.98021397]
[1680517480970,4.92953276,1810.4,1810.3,0.98021397]
[1680517482079,4.92953276,1810.4,1810.3,0.15221397]
[1680517483376,3.48175752,1810.4,1810.3,0.15221397]
[1680517484677,4.63893173,1810.4,1810.3,0.15221397]
[1680517489679,4.92953276,1810.4,1810.3,0.15221397]
[1680517491779,3.48175752,1810.4,1810.3,0.15221397]
[1680517492173,4.30875752,1810.4,1810.3,0.15221397]
[1680517492580,3.48175752,1810.4,1810.3,0.15221397]
[1680517492875,4.34917612,1810.4,1810.3,0.15221397]
[1680517493175,3.48175752,1810.4,1810.3,0.15221397]
[1680517493773,4.34915334,1810.4,1810.3,0.15221397]
[1680517493973,4.34915421,1810.4,1810.3,0.15221397]
[1680517499987,4.34922071,1810.4,1810.3,0.15221397]
[1680517501285,3.48175752,1810.4,1810.3,0.15221397]
[1680517502080,3.48175752,1810.4,1810.0,9.94014404]
[1680517502081,5.13675752,1810.4,1810.0,4.8643]
[1680517502289,0.86764166,1810.1,1810.0,4.8643]
[1680517502487,0.86764166,1810.1,1809.8,5.8578]
[1680517502687,3.2078,1810.0,1809.8,0.828]
[1680517503086,3.2078,1810.0,1809.8,1.828]
[1680517506085,0.26686053,1809.9,1809.8,1.828]
[1680517509408,0.26686053,1809.9,1809.8,2.40660185]
[1680517512097,0.26686053,1809.9,1809.8,3.23360185]
[1680517513497,0.26686053,1809.9,1809.8,2.23360185]
[1680517513805,0.26686053,1809.9,1809.8,7.0202233]
[1680517514111,0.57846224,1810.1,1809.8,7.0202233]
[1680517514301,0.57846224,1810.1,1810.0,1.3986522]
[1680517514707,0.57846224,1810.1,1810.0,1.82]
[1680517515208,0.84524755,1810.1,1810.0,2.3986522]
[1680517516514,0.84524755,1810.1,1810.0,3.2266522]
[1680517516807,0.26678531,1810.1,1810.0,3.5159783]
[1680517518008,0.84524755,1810.1,1810.0,3.5159783]
[1680517519513,0.26678531,1810.1,1810.0,3.5159783]
[1680517519911,0.84524755,1810.1,1810.0,3.5159783]
[1680517520108,0.84524755,1810.1,1810.0,1.6959783]
[1680517520315,4.34222697,1810.1,1810.0,1.40709419]
[1680517523417,1.13442697,1810.1,1810.0,1.40709419]
[1680517525622,1.13442697,1810.1,1810.0,2.27507249]
[1680517527323,1.13442697,1810.1,1810.0,1.6959783]
[1680517530125,1.13442697,1810.1,1810.0,2.27512293]
[1680517531830,1.13442697,1810.1,1810.0,1.6959783]
[1680517532025,1.13442697,1810.1,1810.0,3.10313023]
[1680517532531,1.13442697,1810.1,1810.0,2.23515193]
[1680517532725,4.34222697,1810.1,1810.0,2.23515193]
[1680517533931,1.13442697,1810.1,1810.0,2.5239783]
[1680517534330,1.71337841,1810.1,1810.0,2.5239783]
[1680517534628,1.71337496,1810.1,1810.0,2.5239783]
[1680517534932,1.71338204,1810.1,1810.0,2.5239783]
[1680517535232,0.84573946,1810.1,1810.0,2.5239783]
[1680517535730,1.71338112,1810.1,1810.0,2.5239783]
[1680517535932,0.84573946,1810.1,1810.0,2.5239783]
[1680517539934,1.71338112,1810.1,1810.0,2.5239783]
[1680517540236,0.84573946,1810.1,1810.0,2.5239783]
[1680517540428,1.71338112,1810.1,1810.0,2.5239783]
[1680517540927,0.84573946,1810.1,1810.0,2.5239783]
[1680517541734,1.71338112,1810.1,1810.0,2.5239783]
[1680517542534,1.13442697,1810.1,1810.0,2.5239783]
[1680517543729,4.34222697,1810.1,1810.0,2.5239783]
[1680517544132,4.34222697,1810.1,1810.0,3.10325006]
[1680517545635,4.34222697,1810.1,1810.0,2.5239783]
[1680517556639,1.44870732,1810.2,1810.1,4.342]
[1680517556947,1.44777524,1810.6,1810.1,8.94988893]
[1680517557140,4.65557524,1810.6,1810.5,1.655]
[1680517558338,1.44777524,1810.7,1810.5,1.655]
[1680517558543,4.65557524,1810.8,1810.6,0.828]
[1680517558750,4.65580099,1810.8,1810.7,1.655]
[1680517559640,3.2078,1810.8,1810.7,1.655]
[1680517561645,1.44800099,1810.9,1810.8,0.821]
[1680517561847,4.65580099,1811.0,1810.8,2.468]
[1680517562045,4.65580099,1811.0,1810.9,0.828]
[1680517562244,4.65580099,1811.0,1810.9,1.828]
[1680517562648,4.65580099,1811.0,1810.9,0.828]
[1680517564153,4.65580099,1811.0,1810.9,0.92670952]
[1680517564648,3.41451539,1811.4,1810.9,7.45050952]
[1680517564853,13.03678604,1811.9,1810.9,7.45050952]
[1680517564854,0.22831579,1811.7,1811.3,8.9888]
[1680517565053,1.73559358,1811.9,1811.6,5.6858]
[1680517565245,1.73559358,1812.0,1811.8,2.475]
[1680517565453,3.2078,1812.1,1811.9,1.651]
[1680517565653,1.44152789,1812.2,1811.8,0.828]
[1680517565654,1.44152789,1812.2,1812.0,1.656]
[1680517565854,3.2078,1812.3,1812.0,1.656]
[1680517565855,4.64932789,1812.3,1812.1,0.825]
[1680517566051,4.64932789,1812.3,1812.2,0.828]
[1680517566257,3.2078,1812.3,1812.0,0.828]
[1680517566451,3.2078,1812.1,1811.6,1.54453586]
[1680517566757,3.2078,1811.9,1811.6,0.54453586]
[1680517567057,3.2078,1811.7,1811.2,0.57814639]
[1680517567259,3.2078,1811.7,1811.2,1.0]
[1680517567465,3.2078,1811.7,1811.5,1.098]
[1680517569364,3.2078,1811.7,1811.6,1.104]
[1680517570557,3.2078,1811.9,1811.6,1.104]
[1680517570858,3.2078,1811.9,1811.8,1.101]
[1680517571454,3.2078,1811.9,1811.8,1.63252299]
[1680517573872,3.2078,1811.9,1811.8,0.53152299]
[1680517574166,3.2078,1811.9,1811.6,1.104]
[1680517574364,3.2078,1811.7,1811.6,1.104]
[1680517574967,3.2078,1811.7,1811.6,2.205]
[1680517575164,3.2078,1811.7,1811.6,2.56716074]
[1680517577669,3.2078,1811.9,1811.6,2.56716074]
[1680517577867,3.2078,1811.9,1811.8,1.101]
[1680517582969,3.2078,1811.9,1811.7,1.096]
[1680517584378,3.2078,1811.9,1811.6,1.46016074]
[1680517584575,3.2078,1811.7,1811.6,0.36216074]
[1680517584779,5.4108,1811.7,1811.1,0.54843951]
[1680517585078,5.4108,1811.7,1811.1,1.0]
[1680517585079,3.2078,1811.3,1811.1,1.0]
[1680517585578,3.2078,1811.3,1811.0,1.101]
[1680517586077,3.2078,1811.3,1811.0,2.101]
[1680517586579,3.2078,1811.3,1811.0,1.101]
[1680517586779,3.2078,1811.3,1811.0,2.101]
[1680517587278,3.2078,1811.3,1811.0,1.101]
[1680517587680,3.2078,1811.3,1811.0,2.101]
[1680517587878,3.2078,1811.3,1811.0,1.101]
[1680517588980,3.2078,1811.1,1811.0,1.101]
[1680517592383,3.2049084,1811.1,1811.0,1.14305962]
[1680517592881,3.19959193,1811.1,1811.0,1.14305962]
[1680517593184,3.19749887,1811.1,1811.0,1.14305962]
[1680517593485,3.19454222,1811.1,1811.0,1.14305962]
[1680517593681,3.19246091,1811.1,1811.0,1.14305962]
[1680517595183,3.19001066,1811.1,1811.0,1.14305962]
[1680517595578,3.18748926,1811.1,1811.0,1.14305962]
[1680517595778,3.18521507,1811.1,1811.0,1.14305962]
[1680517596076,3.18271164,1811.1,1811.0,1.14305962]
[1680517596281,3.18271164,1811.1,1811.0,1.101]
[1680517596482,3.18041367,1811.1,1811.0,1.14079167]
[1680517596679,3.18041367,1811.1,1811.0,1.101]
[1680517599096,3.2078,1811.3,1811.0,1.101]
[1680517599288,3.2078,1811.3,1811.2,1.104]
[1680517601386,3.2078,1811.3,1811.0,1.104]
[1680517601582,3.2078,1811.1,1810.8,6.56744639]
[1680517601791,3.2078,1811.1,1810.8,1.101]
[1680517603894,3.2078,1811.1,1810.8,1.67914639]
[1680517604096,3.2078,1811.1,1810.8,1.101]
[1680517604895,4.3078,1810.9,1810.6,5.40851345]
[1680517605096,3.2078,1810.7,1810.6,0.56301345]
[1680517605290,3.2078,1810.7,1810.5,0.57814639]
[1680517605591,3.2078,1810.7,1810.6,1.104]
[1680517605791,3.2078,1810.7,1810.6,2.104]
[1680517605997,3.2078,1810.7,1810.6,2.68214639]
[1680517606490,3.2078,1810.7,1810.6,2.104]
[1680517606898,3.2078,1810.7,1810.6,1.104]
[1680517609196,3.31486683,1810.7,1810.6,1.104]
[1680517614800,3.31486683,1810.7,1810.6,1.098]
[1680517614801,0.10706683,1810.7,1810.6,1.098]
[1680517614999,0.10706683,1810.7,1810.6,2.098]
[1680517615202,3.2078,1810.9,1810.6,2.098]
[1680517615502,3.2078,1810.9,1810.8,1.104]
[1680517620303,3.31476698,1810.9,1810.8,1.104]
[1680517627206,3.31476698,1810.9,1810.6,0.57814639]
[1680517627407,3.31476698,1810.9,1810.3,12.8576972]
[1680517627408,4.3078,1810.7,1810.3,1.44703882]
[1680517627602,3.2078,1810.4,1810.2,0.57814639]
[1680517628011,3.2078,1810.4,1810.2,1.104]
[1680517632212,3.2078,1810.4,1810.1,1.68214639]
[1680517632413,3.2078,1810.2,1810.1,1.68214639]
[1680517633513,3.2078,1810.2,1810.1,1.104]
[1680517633817,3.2078,1810.2,1810.1,1.68214639]
[1680517635314,3.2078,1810.2,1810.1,1.104]
[1680517635315,3.67999365,1810.2,1810.1,1.104]
[1680517641419,0.47219365,1810.2,1810.1,1.104]
[1680517641819,3.2078,1810.4,1810.1,1.104]
[1680517642018,3.2078,1810.4,1810.2,1.101]
[1680517643515,3.2078,1810.4,1810.0,2.67414639]
[1680517643921,3.2078,1810.4,1810.0,1.67414639]
[1680517644519,3.2078,1810.2,1810.0,0.57814639]
[1680517644711,2.1,1810.1,1809.7,1.99140166]
[1680517644915,2.1,1810.1,1809.6,0.57738887]
[1680517644916,3.2078,1809.8,1809.6,0.57738887]
[1680517645328,3.2078,1809.8,1809.5,2.104]
[1680517645518,3.2078,1809.8,1809.5,2.66873212]
[1680517646018,3.2078,1809.8,1809.5,1.66873212]
[1680517646620,3.2078,1809.8,1809.5,2.66873212]
[1680517647128,3.2078,1809.8,1809.5,3.24612099]
[1680517647524,3.2078,1809.8,1809.5,2.66873212]
[1680517648024,3.2078,1809.8,1809.6,1.0]
[1680517649221,3.2078,1809.8,1809.5,2.104]
[1680517650327,0.70297247,1809.7,1809.5,2.104]
[1680517651525,0.70297247,1809.7,1809.5,1.104]
[1680517653729,3.2078,1809.6,1809.5,1.104]
[1680517653917,3.2078,1809.6,1809.5,2.104]
[1680517657235,0.70297247,1809.7,1809.5,2.104]
[1680517657437,0.70297247,1809.7,1809.6,1.0]
[1680517658630,0.70297247,1809.7,1809.5,2.104]
[1680517660235,0.70297247,1809.7,1809.5,1.104]
[1680517670953,0.70297247,1809.7,1809.5,2.104]
[1680517671144,0.70297247,1809.7,1809.5,1.104]
[1680517671338,0.70297247,1809.7,1809.5,1.68138887]
[1680517672646,3.2078,1809.6,1809.5,0.57738887]
[1680517672844,4.3078,1809.6,1809.3,0.57738887]
[1680517673045,3.2078,1809.4,1809.2,0.57738887]
[1680517674055,3.2078,1809.4,1809.2,2.44347218]
[1680517674351,5.11259554,1809.6,1809.2,1.44347218]
[1680517674556,5.11259554,1809.6,1809.3,0.57738887]
[1680517674851,5.11259554,1809.6,1809.3,1.57738887]
[1680517675057,5.11259554,1809.6,1809.3,0.57738887]
[1680517675556,3.2078,1809.4,1809.3,0.57738887]
[1680517677356,5.11259554,1809.6,1809.3,0.57738887]
[1680517677551,3.2078,1809.4,1809.3,0.57738887]
[1680517677956,5.11259554,1809.6,1809.3,0.57738887]
[1680517678154,3.2078,1809.4,1809.3,0.57738887]
[1680517680363,4.01185922,1809.4,1809.3,1.68138887]
[1680517680565,0.80405922,1809.4,1809.3,1.68138887]
[1680517680864,0.80405922,1809.4,1809.3,2.68138887]
[1680517681162,3.2078,1809.6,1809.3,2.68138887]
[1680517681358,3.2078,1809.6,1809.3,2.54747218]
[1680517681558,3.2078,1809.6,1809.3,1.68138887]
[1680517682163,3.2078,1809.6,1809.3,1.67338887]
[1680517683453,3.2078,1809.6,1809.4,1.57738887]
[1680517683860,3.2078,1809.6,1809.4,0.57738887]
[1680517684269,3.2078,1809.6,1809.4,1.57738887]
[1680517684567,3.2078,1809.6,1809.4,0.57738887]
[1680517685765,0.57713444,1809.7,1809.4,0.57738887]
[1680517685967,3.2078,1809.6,1809.4,0.57738887]
[1680517688069,3.2078,1809.6,1809.4,1.44347218]
[1680517688370,3.2078,1809.6,1809.4,0.57738887]
[1680517689072,3.78493444,1809.6,1809.4,0.57738887]
[1680517689265,3.2078,1809.6,1809.4,0.57738887]
[1680517689468,3.78493444,1809.6,1809.5,0.57738887]
[1680517691970,5.17522317,1809.6,1809.5,0.57738887]
[1680517692173,5.75381179,1809.6,1809.5,0.57738887]
[1680517692368,5.75381055,1809.6,1809.5,0.57738887]
[1680517693066,5.17522317,1809.6,1809.5,0.57738887]
[1680517693268,5.75380101,1809.6,1809.5,0.57738887]
[1680517695367,6.55774731,1809.6,1809.5,0.57738887]
[1680517697579,6.55771044,1809.6,1809.5,0.57738887]
[1680517698079,6.55770718,1809.6,1809.5,0.57738887]
[1680517698369,5.97916947,1809.6,1809.5,0.57738887]
[1680517699075,5.6922839,1809.6,1809.5,0.57738887]
[1680517699275,6.55770707,1809.6,1809.5,0.57738887]
[1680517699479,5.97916947,1809.6,1809.5,0.57738887]
[1680517700473,6.55771583,1809.6,1809.5,0.57738887]
[1680517700674,5.69229266,1809.6,1809.5,0.57738887]
[1680517700872,5.97916947,1809.6,1809.5,0.57738887]
[1680517702082,4.87716947,1809.6,1809.5,0.57738887]
[1680517707383,5.70016947,1809.6,1809.5,0.57738887]
[1680517710581,5.70016947,1809.6,1809.5,1.44347218]
[1680517710782,5.70016947,1809.6,1809.5,0.57738887]
[1680517711276,5.70016947,1809.6,1809.5,0.57117375]
[1680517712077,5.70316947,1809.6,1809.5,0.57117375]
[1680517713379,5.70316947,1809.6,1809.5,1.43725706]
[1680517715180,5.70316947,1809.6,1809.5,0.86608331]
[1680517715488,4.8377463,1809.6,1809.5,0.86608331]
[1680517716186,5.98440515,1809.6,1809.5,0.86608331]
[1680517718479,5.98440515,1809.6,1809.2,0.56443258]
[1680517718480,0.866,1809.5,1809.2,0.56443258]
[1680517718681,5.47914712,1809.3,1808.9,7.01849365]
[1680517718886,0.86899653,1809.0,1808.9,5.8583]
[1680517719083,0.57932772,1809.1,1808.9,1.98929531]
[1680517719384,3.78712772,1809.1,1808.9,1.98929531]
[1680517720881,3.78712772,1809.1,1808.9,0.829]
[1680517722094,3.78712772,1809.1,1808.9,1.105]
[1680517722689,3.2078,1809.1,1808.9,1.105]
[1680517725394,0.95136687,1809.0,1808.9,1.105]
[1680517728787,0.95136687,1809.0,1808.8,1.16029531]
[1680517729190,0.95136687,1809.0,1808.7,9.02071756]
[1680517729786,0.95136687,1809.0,1808.7,4.92681756]
[1680517730287,0.95136687,1809.0,1808.7,3.92681756]
[1680517730491,0.95136687,1809.0,1808.7,4.92681756]
[1680517732195,0.95136687,1809.0,1808.7,3.82181756]
[1680517732495,0.95136687,1809.0,1808.7,2.82181756]
[1680517734697,0.95136687,1809.0,1808.7,3.82181756]
[1680517734997,0.95136687,1809.0,1808.7,2.82181756]
[1680517735197,0.95136687,1809.0,1808.7,3.82181756]
[1680517735386,0.57932772,1809.3,1809.0,4.972]
[1680517735591,0.86899653,1809.7,1809.2,2.21]
[1680517735786,1.15866204,1809.8,1809.2,2.21]
[1680517735787,0.57770244,1809.8,1809.5,1.105]
[1680517736089,0.57770244,1809.8,1809.7,2.2]
[1680517736288,0.87783242,1809.9,1809.7,2.197]
[1680517736601,0.86657899,1810.1,1809.8,4.3128]
[1680517736788,0.86657899,1810.1,1810.0,1.101]
[1680517736986,1.02354973,1810.1,1810.0,1.105]
[1680517737689,0.15697074,1810.1,1810.0,1.105]
[1680517737896,1.02354973,1810.1,1810.0,1.105]
[1680517738593,0.15697074,1810.1,1810.0,1.105]
[1680517741700,0.15697074,1810.1,1810.0,4.3128]
[1680517741899,0.86657899,1810.4,1810.0,5.4158]
[1680517742197,0.86657899,1810.4,1810.3,1.105]
[1680517742692,0.86657899,1810.4,1810.3,2.105]
[1680517742898,0.86657899,1810.5,1810.3,2.105]
[1680517743099,0.10637169,1810.4,1810.3,2.105]
[1680517743697,0.10637169,1810.4,1810.3,1.105]
[1680517744993,4.07437899,1810.6,1810.3,1.105]
[1680517746203,0.86657899,1810.5,1810.3,1.105]
[1680517746495,4.07437899,1810.6,1810.3,1.105]
[1680517746801,4.07437899,1810.6,1810.3,2.105]
[1680517747202,4.07437899,1810.6,1810.3,1.105]
[1680517747402,4.07437899,1810.6,1810.3,2.105]
[1680517747902,4.07437899,1810.6,1810.3,1.105]
[1680517749000,4.07437899,1810.6,1810.3,2.105]
[1680517749898,0.86657899,1810.6,1810.5,1.105]
[1680517750089,0.86657899,1810.7,1810.5,1.105]
[1680517750296,0.86657899,1810.7,1810.6,1.105]
[1680517750899,0.86657899,1810.7,1810.5,1.101]
[1680517752397,4.07437899,1810.8,1810.5,1.101]
[1680517754302,4.07437899,1810.8,1810.7,1.105]
[1680517754604,3.2078,1810.8,1810.7,1.18823763]
[1680517755899,0.86657899,1810.9,1810.7,1.18823763]
[1680517756105,5.7331965,1811.0,1810.8,1.105]
[1680517756301,5.7331965,1811.0,1810.8,1.18687934]
[1680517757203,4.07437899,1811.0,1810.8,1.18687934]
[1680517757504,1.098,1810.9,1810.8,0.08187934]
[1680517758002,2.098,1810.9,1810.4,5.9489]
[1680517758206,3.2078,1810.7,1810.5,1.0]
[1680517758506,3.2078,1810.7,1810.4,5.9489]
[1680517758807,3.2078,1810.7,1810.4,1.105]
[1680517760302,5.07437899,1811.0,1810.6,1.105]
[1680517760603,3.2078,1811.0,1810.8,1.105]
[1680517762206,3.2078,1811.0,1810.9,0.0819305]
[1680517762604,3.2078,1811.0,1810.8,1.105]
[1680517762806,3.2078,1811.0,1810.9,0.08193745]
[1680517763105,3.2078,1811.0,1810.8,1.105]
[1680517764011,3.2078,1811.0,1810.9,1.105]
[1680517764212,3.2078,1811.0,1810.9,2.105]
[1680517764514,4.07437899,1811.2,1810.9,2.105]
[1680517764806,3.2078,1811.2,1811.0,1.0]
[1680517765404,3.2078,1811.2,1810.9,2.105]
[1680517766714,3.2078,1811.2,1810.9,1.105]
[1680517770120,3.2078,1811.2,1811.0,0.08200182]
[1680517771921,3.2078,1811.2,1811.1,1.101]
[1680517772223,3.2078,1811.2,1811.0,1.18700182]
[1680517775021,4.07437899,1811.2,1811.0,1.18700182]
[1680517776725,6.17337899,1811.2,1811.0,0.08200182]
[1680517777126,0.86657899,1811.1,1810.9,1.105]
[1680517777329,1.86657899,1811.1,1810.9,1.105]
[1680517777526,0.86657899,1811.1,1810.9,1.105]
[1680517778231,4.07437899,1811.2,1810.9,1.105]
[1680517779029,0.86657899,1811.0,1810.9,1.105]
[1680517779715,0.86657899,1811.1,1810.9,1.105]
[1680517779920,0.86657899,1811.0,1810.9,1.105]
[1680517780126,0.86657899,1811.0,1810.9,2.105]
[1680517780320,0.86657899,1811.0,1810.9,1.105]
[1680517780825,4.36646204,1811.2,1810.9,1.105]
[1680517781030,1.15866204,1811.0,1810.9,1.105]
[1680517781526,4.36646204,1811.0,1810.9,1.105]
[1680517782123,1.15866204,1811.0,1810.9,1.105]
[1680517785229,1.44834712,1811.1,1810.9,1.18713495]
[1680517786018,3.2078,1811.0,1810.9,1.18713495]
[1680517786223,4.65614712,1811.0,1810.9,1.18713495]
[1680517786920,4.65614712,1811.0,1810.9,0.08213495]
[1680517787231,12.27037277,1811.0,1810.7,1.105]
[1680517787422,2.84299168,1811.1,1810.7,1.105]
[1680517787423,4.36397869,1810.8,1810.7,1.105]
[1680517788930,3.2078,1810.8,1810.7,1.105]
[1680517790131,1.15636652,1810.8,1810.7,1.105]
[1680517790629,1.44522336,1810.9,1810.7,1.105]
[1680517791021,1.44522336,1810.8,1810.7,1.105]
[1680517792027,4.65302336,1810.8,1810.7,1.105]
[1680517794429,1.44522336,1810.8,1810.7,1.105]
[1680517794931,4.65302336,1810.8,1810.7,1.105]
[1680517795731,1.44522336,1810.8,1810.7,1.105]
[1680517800132,1.44522336,1810.8,1810.7,1.18726809]
[1680517801234,1.15782781,1810.8,1810.7,2.28626809]
[1680517801432,1.157764,1810.9,1810.8,1.0]
[1680517801640,1.157764,1810.9,1810.8,2.101]
[1680517802233,1.157764,1810.9,1810.8,5.3088]
[1680517805339,1.157764,1810.9,1810.8,4.3088]
[1680517805542,1.157764,1810.9,1810.8,1.101]
[1680517806040,1.157764,1810.9,1810.8,2.2714819]
[1680517806240,1.157764,1810.9,1810.8,1.2714819]
[1680517807136,1.157764,1810.9,1810.8,2.2714819]
[1680517808536,1.157764,1811.0,1810.8,2.2714819]
[1680517808839,1.157764,1810.9,1810.8,1.1704819]
[1680517809143,1.157764,1810.9,1810.8,1.2754819]
[1680517810037,1.157764,1810.9,1810.8,2.2754819]
[1680517811446,1.157764,1811.0,1810.8,2.2754819]
[1680517811740,1.157764,1811.0,1810.9,2.101]
[1680517812950,1.157764,1811.0,1810.9,5.3088]
[1680517816842,1.157764,1811.0,1810.9,5.52273784]
[1680517819842,1.157764,1811.1,1810.9,5.52273784]
[1680517820043,1.1570168,1811.1,1811.0,2.105]
[1680517823445,0.86752114,1811.1,1811.0,2.105]
[1680517823944,0.86752114,1811.2,1811.0,2.105]
[1680517824148,0.86752114,1811.2,1811.1,6.2738]
[1680517824344,0.86752114,1811.3,1811.1,6.2738]
[1680517824541,1.1570168,1811.4,1811.2,2.105]
[1680517824744,0.86703108,1811.3,1811.2,1.0]
[1680517824942,0.86703108,1811.3,1811.2,2.105]
[1680517825954,0.86703108,1811.3,1811.2,3.205]
[1680517826348,0.86703108,1811.4,1811.2,3.205]
[1680517826549,0.86703108,1811.4,1811.3,4.3128]
[1680517827451,0.86703108,1811.4,1811.3,9.8368]
[1680517827653,0.86703108,1811.6,1811.3,9.8368]
[1680517827854,0.86703108,1811.6,1811.5,5.4158]
[1680517828750,0.86703108,1811.6,1811.5,10.9398]
[1680517828946,0.86703108,1811.6,1811.5,7.732]
[1680517829853,0.86703108,1811.6,1811.5,5.4158]
[1680517830650,0.86703108,1811.6,1811.5,3.208]
[1680517831554,1.1570168,1811.8,1811.5,3.208]
[1680517831555,0.86703108,1811.7,1811.6,1.0]
[1680517831743,0.86703108,1811.7,1811.6,5.74196605]
[1680517831948,1.1570168,1811.8,1811.6,5.74196605]
[1680517832143,1.1570168,1811.8,1811.7,1.105]
[1680517832353,1.1570168,1811.8,1811.7,2.105]
[1680517834656,1.15332173,1811.9,1811.8,6.524]
[1680517834858,1.15332173,1811.9,1811.8,11.9368]
[1680517834859,0.46684928,1811.9,1811.8,11.9368]
[1680517835460,0.46684928,1811.9,1811.8,5.4128]